bitfinex/quotes_ETHUSD_20251031
["timestamp","ask_amount","ask_price","bid_price","bid_amount"]
[1761919974183,0.405504,3860.3,3860.2,0.0983]
[1761919974488,0.405504,3860.2,3860.1,0.005]
[1761919974685,0.405504,3860.3,3860.1,0.005]
[1761919975314,0.405504,3860.7,3860.1,0.005]
[1761919975592,2.99604335,3860.2,3860.1,0.005]
[1761919975888,5.15312769,3860.2,3860.1,0.005]
[1761919976558,5.60962769,3860.2,3860.1,0.005]
[1761919976966,11.72588769,3860.2,3860.1,0.005]
[1761919977486,9.60286969,3860.2,3860.1,0.005]
[1761919977796,5.60962769,3860.2,3860.1,0.005]
[1761919978088,12.67760469,3860.2,3860.1,0.005]
[1761919978251,7.280709,3860.2,3860.1,0.005]
[1761919978456,2.99604335,3860.2,3860.1,0.005]
[1761919978888,16.46073535,3860.2,3860.1,0.007]
[1761919979106,2.99671461,3859.2,3858.7,0.0983]
[1761919979882,0.405504,3859.2,3858.7,0.0983]
[1761919980092,0.405504,3859.2,3859.1,0.2016]
[1761919980470,0.6457,3860.5,3859.1,0.2016]
[1761919980669,0.6457,3861.2,3859.5,0.0983]
[1761919980876,1.39968,3860.1,3859.5,0.0983]
[1761919981163,0.405504,3860.0,3859.1,0.005]
[1761919981370,0.405504,3860.1,3859.2,0.0259121]
[1761919981570,1.39968,3860.0,3859.2,0.0259121]
[1761919981810,0.405504,3860.2,3859.3,0.27204452]
[1761919982010,0.405504,3860.0,3859.4,0.02591076]
[1761919982206,0.4575,3860.7,3859.4,0.02591076]
[1761919982207,2.59055436,3860.2,3859.4,0.02591076]
[1761919982510,2.59067357,3860.0,3859.4,0.02591076]
[1761919982797,2.5908516,3859.8,3859.2,0.0983]
[1761919982979,1.39968,3860.5,3859.2,0.0983]
[1761919982980,2.99642001,3859.7,3859.2,0.0983]
[1761919983161,0.405504,3860.5,3859.2,0.0983]
[1761919983356,0.405504,3860.5,3859.1,0.005]
[1761919983357,0.405504,3859.5,3859.1,0.005]
[1761919984000,2.99671461,3859.2,3859.1,0.005]
[1761919984157,0.405504,3859.2,3859.1,0.005]
[1761919984499,0.405504,3859.2,3859.1,0.1033]
[1761919984855,0.98232911,3860.5,3859.1,0.1033]
[1761919984856,0.405504,3860.2,3859.1,0.2016]
[1761919985084,1.805184,3859.6,3859.1,0.2016]
[1761919985289,1.805184,3859.6,3859.1,0.1033]
[1761919985474,0.405504,3859.6,3859.1,0.1033]
[1761919985772,0.405504,3859.5,3859.1,0.1033]
[1761919985985,0.405504,3859.9,3859.4,0.0983]
[1761919986161,0.405504,3859.9,3859.6,0.0983]
[1761919986480,0.405504,3860.0,3859.6,0.0983]
[1761919986688,0.405504,3860.0,3859.1,0.1033]
[1761919986689,0.405504,3859.7,3859.1,0.1033]
[1761919986886,0.1892,3860.3,3859.1,0.005]
[1761919986887,0.405504,3859.3,3859.1,0.005]
[1761919987060,0.1892,3860.3,3859.1,0.005]
[1761919987061,2.59121061,3859.2,3859.1,0.005]
[1761919987260,2.99671461,3859.2,3859.1,0.005]
[1761919987728,5.31069461,3859.2,3859.1,0.005]
[1761919987889,7.68057351,3859.2,3859.1,0.005]
[1761919988095,5.88136492,3859.2,3859.1,0.005]
[1761919988747,8.48909592,3859.2,3859.1,0.005]
[1761919989448,8.48909592,3859.2,3858.1,0.005]
[1761919989449,4.39706622,3858.2,3858.1,0.005]
[1761919989592,7.34754822,3858.2,3858.1,0.005]
[1761919989790,7.4242903,3858.2,3858.1,0.005]
[1761919990023,7.1067144,3858.2,3858.1,0.005]
[1761919990328,3.16388622,3858.2,3858.1,0.005]
[1761919990530,0.1892,3858.7,3858.1,0.005]
[1761919990711,0.1892,3859.6,3858.3,2.69005792]
[1761919990916,0.1892,3859.6,3858.6,0.0983]
[1761919991112,3.99079623,3859.4,3858.6,0.0983]
[1761919991327,0.1288,3858.6,3858.4,0.02591747]
[1761919991508,0.6457,3859.6,3858.4,0.02591747]
[1761919991830,0.1892,3860.3,3858.8,2.5914437]
[1761919992031,0.1892,3860.3,3858.6,2.59158896]
[1761919992032,0.1892,3860.3,3858.6,1.39968]
[1761919992237,0.1892,3860.3,3859.1,2.59127588]
[1761919992848,0.006,3860.7,3859.1,2.59127588]
[1761919992849,0.1288,3859.6,3859.3,2.59114347]
[1761919993156,0.1288,3859.6,3859.3,2.59108744]
[1761919993350,0.1288,3859.6,3859.5,0.0983]
[1761919993651,0.006,3860.7,3859.9,2.59069607]
[1761919993801,0.1288,3860.1,3860.0,0.0983]
[1761919994002,0.405504,3860.1,3860.0,0.0983]
[1761919994299,0.006,3860.7,3860.0,0.1966]
[1761919994545,2.59625615,3860.7,3860.0,0.1966]
[1761919994732,0.405504,3860.6,3860.0,0.1966]
[1761919995102,0.006,3860.7,3860.1,0.02590606]
[1761919995437,0.411504,3860.7,3860.1,0.30722519]
[1761919995942,0.0052,3860.7,3860.1,0.30722519]
[1761919996141,0.405504,3860.6,3860.1,0.30722519]
[1761919996447,0.0052,3860.7,3860.1,0.02590606]
[1761919996953,2.59541365,3860.7,3860.1,0.02590606]
[1761919997433,0.0052,3860.7,3860.1,0.02590606]
[1761919997662,0.1288,3860.1,3860.0,0.0983]
[1761919998151,0.1288,3860.1,3860.0,0.1966]
[1761919998876,0.1288,3860.1,3860.0,2.78727357]
[1761919999139,0.1288,3860.1,3860.0,0.1966]
[1761919999523,0.0052,3860.7,3860.1,2.59055597]
[1761919999840,0.0052,3860.7,3860.6,0.0983]
[1761920000003,0.0052,3860.7,3860.0,0.0983]
[1761920000205,0.405504,3860.4,3860.0,0.0983]
[1761920000406,0.4989,3860.7,3859.7,0.0983]
[1761920000604,2.59043564,3860.4,3859.7,0.0983]
[1761920000914,0.405504,3860.4,3859.7,0.0983]
[1761920001128,2.59052974,3860.3,3859.7,0.0983]
[1761920001327,2.99618205,3860.0,3859.4,0.0983]
[1761920001718,0.405504,3860.0,3859.9,0.0983]
[1761920001919,0.0052,3860.7,3859.9,0.0983]
[1761920002141,2.59027988,3860.6,3859.9,0.0983]
[1761920002327,0.410704,3860.7,3859.4,0.0983]
[1761920002663,2.59040513,3860.4,3859.5,0.26893859]
[1761920003015,0.405504,3860.2,3859.5,0.26893859]
[1761920003221,0.4989,3860.7,3859.5,0.26893859]
[1761920003408,0.405504,3859.8,3859.1,0.0983]
[1761920003614,0.405504,3859.8,3858.8,0.0983]
[1761920003840,0.405504,3859.6,3858.5,0.0983]
[1761920004147,0.405504,3858.8,3858.2,0.0983]
[1761920004459,0.405504,3858.8,3858.2,0.36783037]
[1761920004602,0.1844,3859.7,3858.7,0.0983]
[1761920004603,0.405504,3859.4,3858.7,0.0983]
[1761920004802,1.805184,3859.2,3858.7,0.0983]
[1761920005108,2.99685351,3859.0,3858.2,0.0983]
[1761920005307,0.405504,3859.0,3858.3,0.02591815]
[1761920005507,0.405504,3859.6,3858.2,0.1966]
[1761920005846,1.805184,3859.4,3858.2,0.0983]
[1761920006048,2.99705215,3858.7,3858.2,0.0983]
[1761920006356,0.405504,3858.7,3858.2,0.0983]
[1761920006559,0.405504,3858.6,3858.2,0.0983]
[1761920006721,1.39968,3859.2,3858.1,0.005]
[1761920006722,2.99738622,3858.2,3858.1,0.005]
[1761920006924,4.85246622,3858.2,3858.1,0.005]
[1761920007125,6.04898764,3858.2,3858.1,0.005]
[1761920007873,13.27775564,3858.2,3858.1,0.005]
[1761920008438,18.60661564,3858.2,3858.1,0.005]
[1761920008623,13.91424264,3858.2,3858.1,0.005]
[1761920008826,6.04898764,3858.2,3858.1,0.005]
[1761920009045,8.80357364,3858.2,3858.1,0.005]
[1761920009446,15.52106764,3858.2,3858.1,0.005]
[1761920009657,11.81532564,3858.2,3858.1,0.005]
[1761920009834,6.04898764,3858.2,3858.1,0.005]
[1761920010020,8.51037464,3858.2,3858.1,0.005]
[1761920010451,17.83351564,3858.2,3858.1,0.005]
[1761920010657,10.06684064,3858.2,3858.1,0.005]
[1761920010980,3.90488622,3858.2,3858.1,0.005]
[1761920011261,3.90488622,3858.2,3857.1,0.005]
[1761920011262,4.39773818,3857.2,3857.1,0.005]
[1761920011472,5.03753818,3857.2,3857.1,0.005]
[1761920011672,1.805184,3857.2,3857.1,0.005]
[1761920011873,4.39773818,3857.2,3857.1,0.005]
[1761920012074,1.805184,3857.2,3857.1,0.005]
[1761920012838,0.4521,3858.0,3857.1,0.1033]
[1761920012839,0.1844,3858.0,3857.1,0.1033]
[1761920013068,0.405504,3857.9,3857.2,0.02592554]
[1761920013269,0.1844,3858.3,3857.1,0.1033]
[1761920013270,1.39968,3858.1,3857.1,2.69592018]
[1761920013444,1.39968,3857.9,3857.1,3.2346211]
[1761920013654,0.1844,3858.9,3858.1,0.002]
[1761920013856,2.59188222,3858.2,3858.1,0.002]
[1761920014071,3.04728222,3858.2,3858.1,0.002]
[1761920014256,4.85246622,3858.2,3858.1,0.002]
[1761920014577,6.04899262,3858.2,3858.1,0.002]
[1761920015176,2.59159182,3858.7,3858.1,0.1003]
[1761920015483,0.1844,3858.9,3858.1,0.1003]
[1761920015667,0.1844,3858.9,3858.1,0.002]
[1761920015668,2.5916851,3858.5,3858.1,0.002]
[1761920015981,1.85178,3858.8,3858.1,0.002]
[1761920016192,0.405504,3858.2,3858.1,0.002]
[1761920017721,0.4521,3859.6,3858.2,2.59183452]
[1761920017886,2.59112614,3859.4,3858.5,2.6899625]
[1761920018047,0.1844,3860.0,3858.6,2.6174849]
[1761920018048,2.59080808,3859.8,3858.6,2.6174849]
[1761920018254,1.39968,3859.8,3858.4,2.59173528]
[1761920018455,2.59116272,3859.3,3858.4,2.59174127]
[1761920018698,0.6415,3859.7,3858.3,0.53824505]
[1761920018699,2.59128887,3859.1,3858.3,0.53824505]
[1761920018850,2.59119631,3859.3,3858.4,2.59172764]
[1761920019053,2.04118,3859.7,3858.4,2.59172764]
[1761920019054,2.99671701,3859.2,3858.4,2.59172764]
[1761920019282,0.405504,3859.2,3858.4,2.59172764]
[1761920019588,0.6415,3859.7,3858.2,2.59188222]
[1761920019589,0.405504,3859.6,3858.7,2.59149402]
[1761920019788,0.405504,3859.6,3858.5,0.0983]
[1761920019989,0.405504,3859.6,3858.1,2.59390584]
[1761920019990,0.405504,3859.5,3858.1,0.002]
[1761920020287,0.405504,3859.3,3858.1,0.002]
[1761920020462,3.18178622,3858.2,3858.1,0.002]
[1761920020865,0.405504,3858.2,3858.1,0.002]
[1761920021080,2.99658622,3858.2,3858.1,0.002]
[1761920021606,0.404704,3858.2,3858.1,0.002]
[1761920021968,0.404704,3858.2,3858.1,0.1003]
[1761920022166,0.404704,3858.2,3858.1,0.002]
[1761920022367,2.59154637,3858.7,3858.1,0.002]
[1761920022567,2.59188222,3858.2,3858.1,0.002]
[1761920022999,2.59183733,3858.3,3858.1,0.002]
[1761920023200,0.405504,3858.2,3858.1,0.002]
[1761920023404,0.405504,3858.4,3858.1,0.002]
[1761920023788,0.405504,3858.8,3858.1,0.002]
[1761920023998,0.405504,3858.8,3858.1,0.26140339]
[1761920023999,0.405504,3858.6,3858.1,0.26140339]
[1761920024200,0.6415,3859.7,3858.1,0.002]
[1761920024512,0.1288,3858.2,3858.1,3.9936294]
[1761920024710,0.1288,3858.2,3858.1,1.40168]
[1761920024909,0.1288,3858.2,3858.1,2.6922494]
[1761920025073,0.1288,3858.2,3858.1,0.1003]
[1761920025279,0.1288,3858.2,3858.1,0.38194741]
[1761920025478,0.1288,3858.2,3858.1,2.97389681]
[1761920026410,0.1288,3858.2,3858.1,3.07219681]
[1761920026911,0.1288,3858.2,3858.1,0.48024741]
[1761920027110,0.1288,3858.2,3858.1,2.6922494]
[1761920027314,0.405504,3859.4,3858.3,2.5917894]
[1761920027621,0.1894,3859.7,3858.1,0.1986]
[1761920027622,0.1288,3858.8,3858.7,0.0983]
[1761920027779,0.005,3859.7,3858.1,0.002]
[1761920027780,2.59125,3859.2,3858.1,0.002]
[1761920028097,0.405504,3858.4,3858.1,0.002]
[1761920028297,0.1844,3858.9,3858.1,0.002]
[1761920028496,2.99738622,3858.2,3858.1,0.002]
[1761920028898,3.90488622,3858.2,3858.1,0.002]
[1761920029405,2.99738622,3858.2,3858.1,0.002]
[1761920029782,3.90488622,3858.2,3858.1,0.002]
[1761920030003,2.99738622,3858.2,3858.1,0.002]
[1761920030195,3.45688622,3858.2,3858.1,0.002]
[1761920030449,19.48077275,3858.2,3858.1,0.002]
[1761920030729,4.39760376,3857.4,3857.3,0.002]
[1761920031014,4.85710376,3857.4,3857.3,0.002]
[1761920031218,5.32270376,3857.4,3857.3,0.002]
[1761920031382,6.76242919,3857.4,3857.3,0.002]
[1761920032882,0.405504,3857.4,3857.3,0.002]
[1761920033322,2.59241976,3857.4,3857.3,0.002]
[1761920033720,3.51751976,3857.4,3857.3,0.002]
[1761920034229,5.32270376,3857.4,3857.3,0.002]
[1761920034389,22.54892176,3857.4,3857.3,0.002]
[1761920034586,22.9711353,3857.4,3857.3,0.002]
[1761920035014,19.0890603,3857.4,3857.3,0.002]
[1761920035217,30.6073913,3857.4,3857.3,0.002]
[1761920035497,27.1316293,3857.4,3857.3,0.002]
[1761920035899,17.4487803,3857.4,3857.3,0.002]
[1761920036196,16.2935593,3857.4,3857.3,0.002]
[1761920036400,17.6477673,3857.4,3857.3,0.002]
[1761920036826,16.3343523,3857.4,3857.3,0.002]
[1761920037015,13.9015303,3857.4,3857.3,0.002]
[1761920037218,19.1229313,3857.4,3857.3,0.002]
[1761920038314,31.2789433,3857.4,3857.3,0.002]
[1761920038646,24.8184463,3857.4,3857.3,0.002]
[1761920039261,24.8184463,3857.4,3857.1,1e-08]
[1761920039262,33.17444018,3857.2,3857.1,1e-08]
[1761920039461,41.05638535,3857.2,3857.1,1e-08]
[1761920039631,30.14284635,3857.2,3857.1,1e-08]
[1761920040560,30.14284635,3857.2,3856.1,0.005]
[1761920040561,2.99873049,3856.2,3856.1,0.005]
[1761920040764,25.25315266,3856.2,3856.1,0.005]
[1761920040934,22.22938919,3856.2,3856.1,0.005]
[1761920041454,2.66917253,3856.2,3856.1,0.005]
[1761920041745,4.39841049,3856.2,3856.1,0.005]
[1761920041962,4.85791049,3856.2,3856.1,0.005]
[1761920042166,5.32351049,3856.2,3856.1,0.005]
[1761920042365,4.85791049,3856.2,3856.1,0.005]
[1761920042513,9.2683936,3856.2,3856.1,0.005]
[1761920042854,5.6221416,3856.2,3856.1,0.005]
[1761920043214,1.805184,3856.2,3856.1,0.005]
[1761920043418,0.1913,3856.8,3856.1,0.1073]
[1761920043642,0.405504,3856.7,3856.1,0.1073]
[1761920043828,0.55326086,3857.3,3856.7,0.1023]
[1761920043829,0.40679839,3857.3,3856.7,0.1023]
[1761920044128,2.59255418,3857.2,3856.7,0.1023]
[1761920044451,2.59256707,3857.2,3856.7,0.1023]
[1761920044820,2.59244264,3857.4,3856.7,0.1023]
[1761920045014,1.39968,3857.1,3856.2,0.1023]
[1761920045215,0.405504,3856.8,3856.2,0.1023]
[1761920045450,0.1913,3857.8,3857.1,0.1023]
[1761920045650,2.59240531,3857.5,3857.1,0.1023]
[1761920045852,2.59221816,3857.7,3857.1,0.1023]
[1761920046053,0.405504,3857.2,3857.1,0.1023]
[1761920046221,0.404704,3857.2,3857.1,0.1023]
[1761920046420,1.39968,3858.1,3857.1,0.1023]
[1761920046653,1.39968,3857.7,3857.1,0.1023]
[1761920046855,0.1913,3858.2,3857.1,0.1023]
[1761920047054,2.59224921,3857.7,3857.1,0.1023]
[1761920047258,2.59246679,3857.4,3857.1,0.1023]
[1761920047445,2.59246679,3857.4,3855.9,0.1023]
[1761920047446,2.5927085,3857.0,3855.9,0.1023]
[1761920047647,3.05777824,3857.8,3856.3,2.59315924]
[1761920047874,2.59261574,3857.2,3856.9,0.1023]
[1761920048084,0.1913,3857.9,3856.9,0.1023]
[1761920048304,0.001,3857.4,3857.1,0.1023]
[1761920048650,0.001,3857.4,3856.6,1.40168]
[1761920048651,0.405504,3857.2,3856.6,0.002]
[1761920048850,0.405504,3856.8,3856.6,0.002]
[1761920049166,0.405504,3856.9,3856.7,0.1023]
[1761920049359,0.405504,3856.9,3856.6,0.002]
[1761920049360,0.405504,3856.9,3856.8,0.1023]
[1761920049561,0.405504,3857.2,3856.8,0.2046]
[1761920049778,0.1296,3856.8,3856.6,0.002]
[1761920049981,2.5934242,3857.4,3856.6,0.002]
[1761920049982,2.99839429,3856.7,3856.6,0.002]
[1761920050687,0.405504,3856.7,3856.6,0.002]
[1761920050896,2.99839429,3856.7,3856.6,0.002]
[1761920051273,0.405504,3856.7,3856.6,0.002]
[1761920051506,2.99839429,3856.7,3856.6,0.002]
[1761920051694,4.39807429,3856.7,3856.6,0.002]
[1761920051889,6.04138738,3856.7,3856.6,0.002]
[1761920052051,30.15258038,3856.7,3856.6,0.002]
[1761920052251,17.57783638,3856.7,3856.6,0.002]
[1761920053087,27.74408338,3856.7,3856.6,0.002]
[1761920053292,26.89962738,3856.7,3856.6,0.002]
[1761920053986,11.57715338,3856.7,3856.6,0.002]
[1761920054154,0.4656,3857.3,3856.6,0.002]
[1761920054356,2.59282686,3856.8,3856.6,0.002]
[1761920054600,2.59289029,3856.7,3856.6,0.002]
[1761920054750,2.99839429,3856.7,3856.6,0.002]
[1761920055487,2.59282321,3856.8,3856.6,0.1043]
[1761920055906,2.59289029,3856.7,3856.6,0.1043]
[1761920056225,2.99839429,3856.7,3856.6,0.002]
[1761920057688,0.405504,3856.7,3856.6,0.002]
[1761920057890,2.99839429,3856.7,3856.6,0.1043]
[1761920058096,3.55750971,3856.7,3856.6,0.002]
[1761920059054,2.99839429,3856.7,3856.6,0.002]
[1761920059190,3.45789429,3856.7,3856.6,0.002]
[1761920059391,0.405504,3856.7,3856.6,0.002]
[1761920059592,0.405504,3856.7,3856.6,0.1043]
[1761920060023,6.37,3857.3,3856.6,0.1043]
[1761920060024,6.37,3857.3,3856.6,0.2066]
[1761920060328,3.99227626,3857.2,3856.6,0.2066]
[1761920060625,0.001,3857.4,3857.2,0.1023]
[1761920060834,0.001,3857.4,3856.6,0.28216797]
[1761920060835,0.001,3857.4,3856.6,0.002]
[1761920061044,0.405504,3857.0,3856.6,0.002]
[1761920061194,0.001,3857.4,3856.6,0.002]
[1761920061390,2.59268861,3857.0,3856.9,0.1023]
[1761920061646,0.405504,3857.0,3856.9,0.1023]
[1761920061853,0.405504,3856.7,3856.6,0.002]
[1761920062049,2.99839429,3856.7,3856.6,0.002]
[1761920063833,19.58394572,3856.7,3856.6,0.002]
[1761920064033,14.60841772,3856.7,3856.6,0.002]
[1761920064768,5.20926372,3856.7,3856.6,0.002]
[1761920064922,6.83116729,3856.7,3856.6,0.002]
[1761920065265,0.405504,3856.7,3856.6,0.002]
[1761920065419,2.99839429,3856.7,3856.6,0.002]
[1761920065926,3.94669429,3856.7,3856.6,0.002]
[1761920066147,14.99086329,3856.7,3856.6,0.002]
[1761920066465,6.31475439,3856.7,3856.6,0.002]
[1761920068691,0.405504,3856.7,3856.6,0.002]
[1761920068844,0.405504,3856.7,3856.6,0.1043]
[1761920069045,0.001,3857.4,3856.6,0.1043]
[1761920069343,2.59266383,3857.1,3856.6,0.1043]
[1761920069666,2.59342586,3857.4,3856.6,0.1043]
[1761920069985,2.59248697,3857.3,3856.6,0.002]
[1761920070287,2.99839429,3856.7,3856.6,0.002]
[1761920071282,3.94669429,3856.7,3856.6,0.002]
[1761920071442,3.94589429,3856.7,3856.6,0.002]
[1761920071643,2.99759429,3856.7,3856.6,0.002]
[1761920072043,0.001,3857.8,3856.6,0.002]
[1761920072269,0.405504,3856.7,3856.6,0.002]
[1761920072476,2.99839429,3856.7,3856.6,0.002]
[1761920073063,0.405504,3856.8,3856.6,0.1043]
[1761920073369,0.405504,3856.7,3856.6,0.1043]
[1761920073575,0.4553,3857.6,3856.6,0.002]
[1761920073798,2.59259658,3857.2,3856.7,0.2046]
[1761920074171,0.001,3857.4,3857.1,0.1023]
[1761920074764,2.59342243,3857.4,3857.1,0.1023]
[1761920074961,0.001,3857.4,3857.3,0.1023]
[1761920076163,2.59256678,3857.2,3856.6,0.002]
[1761920076509,0.405504,3857.0,3856.6,0.002]
[1761920077106,0.405504,3856.9,3856.6,0.002]
[1761920077309,0.001,3857.4,3856.7,0.2595013]
[1761920077605,0.001,3857.4,3857.3,0.1023]
[1761920077809,1.082004,3856.7,3856.6,0.002]
[1761920077960,2.99839429,3856.7,3856.6,0.002]
[1761920078480,5.34637429,3856.7,3856.6,0.002]
[1761920078677,6.8068691,3856.7,3856.6,0.002]
[1761920079102,14.5323321,3856.7,3856.6,0.002]
[1761920079283,14.2355851,3856.7,3856.6,0.002]
[1761920079608,11.5406511,3856.7,3856.6,0.002]
[1761920079818,3.94669429,3856.7,3856.6,0.002]
[1761920080694,15.36170529,3856.7,3856.6,0.002]
[1761920081721,11.30217429,3856.7,3856.6,0.002]
[1761920082690,11.30217429,3856.7,3856.3,0.002]
[1761920082691,30.300792,3856.4,3856.3,1e-08]
[1761920082891,16.408686,3856.4,3856.3,1e-08]
[1761920083100,16.49353955,3856.4,3856.3,1e-08]
[1761920083302,12.68303155,3856.4,3856.3,1e-08]
[1761920083511,12.68303155,3856.4,3855.1,0.01]
[1761920083512,2.59349551,3855.8,3855.1,0.01]
[1761920083691,4.89208314,3855.2,3855.1,0.01]
[1761920084015,1.805184,3855.2,3855.1,0.01]
[1761920084312,0.898504,3855.2,3855.1,0.01]
[1761920084670,2.99940314,3855.2,3855.1,0.01]
[1761920087110,4.50702126,3855.2,3855.1,0.01]
[1761920087576,5.90670126,3855.2,3855.1,0.01]
[1761920088409,1.805184,3855.2,3855.1,0.01]
[1761920088595,2.59329374,3856.1,3855.1,0.1123]
[1761920088811,0.405504,3855.8,3855.1,0.1123]
[1761920088973,1.39968,3856.1,3855.1,0.1123]
[1761920089178,0.405504,3855.2,3855.1,0.01]
[1761920089521,1.39968,3856.2,3855.1,0.01]
[1761920089813,2.59389914,3855.2,3855.1,0.01]
[1761920090017,2.59363629,3855.6,3855.1,0.01]
[1761920090315,0.405504,3855.5,3855.1,0.01]
[1761920090682,2.99894986,3855.9,3855.4,0.1023]
[1761920091013,0.405504,3855.5,3855.4,0.1023]
[1761920091400,0.40682791,3856.1,3855.4,0.1023]
[1761920091601,0.405504,3855.6,3855.5,0.1023]
[1761920091779,0.405504,3855.6,3855.1,0.01]
[1761920091977,0.405504,3855.3,3855.1,0.01]
[1761920092183,0.405504,3855.2,3855.1,0.01]
[1761920092404,4.87598314,3855.2,3855.1,0.01]
[1761920092603,5.36358145,3855.2,3855.1,0.01]
[1761920092807,5.85948145,3855.2,3855.1,0.01]
[1761920093314,33.32529645,3855.2,3855.1,0.01]
[1761920093502,11.99436645,3855.2,3855.1,0.01]
[1761920094284,17.02291145,3855.2,3855.1,0.01]
[1761920094606,5.85948145,3855.2,3855.1,0.01]
[1761920095006,19.32976245,3855.2,3855.1,0.01]
[1761920095199,8.13296245,3855.2,3855.1,0.01]
[1761920095818,2.99940314,3855.2,3855.1,0.01]
[1761920096023,3.47630314,3855.2,3855.1,0.01]
[1761920096188,3.97220314,3855.2,3855.1,0.01]
[1761920096388,2.99940314,3855.2,3855.1,0.01]
[1761920096598,2.99860314,3855.2,3855.1,0.01]
[1761920096810,7.39128914,3855.2,3855.1,0.01]
[1761920097004,3.47550314,3855.2,3855.1,0.01]
[1761920097214,2.99860314,3855.2,3855.1,0.01]
[1761920098128,3.97140314,3855.2,3855.1,0.01]
[1761920098328,2.99860314,3855.2,3855.1,0.01]
[1761920098896,0.404704,3855.2,3855.1,0.01]
[1761920099530,6.36494944,3856.4,3855.1,0.01]
[1761920099531,1.39968,3855.9,3855.1,0.1123]
[1761920099692,0.4959,3856.3,3855.1,0.1123]
[1761920099693,2.59389914,3855.2,3855.1,0.1123]
[1761920100033,2.59389914,3855.2,3855.1,0.01]
[1761920100233,0.405504,3855.2,3855.1,0.01]
[1761920100459,2.99940314,3855.2,3855.1,0.01]
[1761920100996,4.03562536,3855.2,3855.1,0.01]
[1761920101326,23.87560436,3855.2,3855.1,0.01]
[1761920101526,23.61573036,3855.2,3855.1,0.01]
[1761920101929,22.48024736,3855.2,3855.1,0.01]
[1761920102137,5.93120536,3855.2,3855.1,0.01]
[1761920102431,22.48024736,3855.2,3855.1,0.01]
[1761920102634,3.00007615,3854.2,3854.1,0.01]
[1761920103212,4.95921298,3854.2,3854.1,0.01]
[1761920103537,0.405504,3854.2,3854.1,0.1123]
[1761920103700,0.405504,3854.2,3854.1,0.2146]
[1761920103906,3.00007615,3854.2,3854.1,0.01]
[1761920104338,0.405504,3854.2,3854.1,0.2146]
[1761920104760,0.1958,3855.6,3854.1,0.2146]
[1761920104908,0.1958,3855.6,3854.2,0.1023]
[1761920105110,0.405504,3855.0,3854.2,0.5232038]
[1761920105313,0.405504,3854.7,3854.2,0.1023]
[1761920105549,2.99974244,3854.7,3854.2,0.1023]
[1761920105842,2.99974244,3854.7,3854.6,0.1023]
[1761920106045,0.405504,3854.4,3854.1,0.01]
[1761920106243,0.405504,3854.7,3854.1,0.01]
[1761920106462,2.9997396,3854.7,3854.6,0.1023]
[1761920106624,3.00007615,3854.2,3854.1,0.01]
[1761920107108,0.405504,3854.2,3854.1,0.1123]
[1761920107310,0.405504,3854.2,3854.1,0.2146]
[1761920107510,0.405504,3855.2,3854.1,0.2146]
[1761920107814,0.405504,3855.0,3854.1,0.1123]
[1761920108019,0.405504,3854.9,3854.2,2.72280949]
[1761920108310,2.99960501,3854.9,3854.8,0.1023]
[1761920108510,0.405504,3854.9,3854.8,0.1023]
[1761920108719,2.99969685,3854.8,3854.1,0.01]
[1761920108924,0.405504,3854.4,3854.1,0.01]
[1761920109137,0.405504,3854.2,3854.1,0.01]
[1761920109325,0.405504,3854.2,3854.1,0.1123]
[1761920109645,6.37,3855.7,3854.1,0.2146]
[1761920109847,4.969519,3855.6,3854.7,0.1023]
[1761920110023,2.59423788,3854.7,3854.2,0.1023]
[1761920110210,0.405504,3854.6,3854.2,0.1023]
[1761920110408,0.4731,3855.5,3854.1,0.01]
[1761920110606,0.405504,3854.2,3854.1,0.01]
[1761920111046,0.405504,3854.5,3854.1,0.1123]
[1761920111345,0.4731,3855.1,3854.1,0.1123]
[1761920111346,3.00007615,3854.2,3854.1,0.01]
[1761920112170,0.405504,3854.2,3854.1,0.01]
[1761920112466,3.00007615,3854.2,3854.1,0.01]
[1761920112862,3.93867615,3854.2,3854.1,0.01]
[1761920113058,4.59198757,3854.2,3854.1,0.01]
[1761920113260,0.871004,3854.2,3854.1,0.01]
[1761920113570,0.405504,3854.2,3854.1,0.01]
[1761920113745,3.00007615,3854.2,3854.1,0.01]
[1761920114874,0.405504,3854.2,3854.1,0.1123]
[1761920115178,1.39968,3855.0,3854.1,0.2146]
[1761920115513,2.59424187,3854.7,3854.1,0.2146]
[1761920115773,0.4731,3855.4,3854.1,0.53320315]
[1761920115971,3.23079346,3855.6,3854.1,0.1123]
[1761920115972,0.405504,3854.3,3854.1,0.1123]
[1761920116273,3.00005219,3854.3,3854.1,0.1123]
[1761920116472,3.00007615,3854.2,3854.1,0.01]
[1761920117050,0.1958,3855.9,3854.1,0.2146]
[1761920117245,0.1296,3854.4,3854.3,2.69675478]
[1761920117450,0.1296,3854.4,3854.3,2.98025483]
[1761920117650,0.1296,3854.4,3854.3,3.08255483]
[1761920118395,0.1296,3854.4,3854.3,0.48810005]
[1761920118705,0.1296,3854.4,3854.3,0.38580005]
[1761920118919,2.59409537,3855.0,3854.1,0.01]
[1761920119070,3.00007615,3854.2,3854.1,0.01]
[1761920119907,0.405504,3854.2,3854.1,0.2146]
[1761920120090,1.805184,3855.2,3854.1,2.80919248]
[1761920120259,0.405504,3855.1,3854.1,0.01]
[1761920120596,3.48967615,3854.2,3854.1,0.01]
[1761920120769,9.85967615,3854.2,3854.1,0.01]
[1761920121490,9.37007615,3854.2,3854.1,0.01]